[Event "AUT Bundesliga 2022-23"]
[Site "Jenbach"]
[Date "2022.11.06"]
[Round "4.35"]
[White "Kersten, Julian"]
[Black "Salvenmoser, Stefan"]
[Result "0-1"]
[ECO "B91"]
[WhiteElo "1999"]
[BlackElo "2295"]
[Annotator "ChessBase"]
[PlyCount "68"]
[EventDate "2022.11.03"]
[EventType "team-tourn"]
[EventCountry "AUT"]
[SourceTitle "playchess.com"]
[Source "ChessBase"]
[SourceQuality "1"]
[TimeControl "40/5400+30:1800+30"]

1. e4 {[%emt 0:00:07]} c5 {[%emt 0:00:13]} 2. Nf3 {[%emt 0:00:06]} d6 {[%emt 0:00:06]} 3. Nc3 {[%emt 0:00:13]} a6 {[%emt 0:02:17]} 4. d4 {[%emt 0:00:11]} cxd4 {[%emt 0:00:05]} 5. Nxd4 {[%emt 0:00:02]} Nf6 {[%emt 0:00:08]} 6. g3 {[%emt 0:00:14]} e5 {[%emt 0:00:39]} 7. Nde2 {[%emt 0:00:07]} Be7 {[%emt 0:03:38]} 8. Bg2 {[%emt 0:00:10]} b5 {[%emt 0:01:54]} 9. a3 {[%emt 0:02:11]} Bb7 {[%emt 0:00:42]} 10. O-O {[%emt 0:00:10]} Nbd7 {[%emt 0:00:26]} 11. Nd5 {[%emt 0:01:42]} Nxd5 {[%emt 0:03:57]} 12. exd5 {[%emt 0:00:06]} O-O {[%emt 0:01:56]} 13. Nc3 {[%emt 0:06:26]} Qc7 {[%emt 0:04:37]} 14. Re1 {[%emt 0:05:02]} Rfe8 {[%emt 0:04:46]} 15. Kh1 {[%emt 0:04:48]} Rac8 {[%emt 0:09:28]} 16. f4 {[%emt 0:13:32]} exf4 {[%emt 0:15:30]} 17. Bxf4 {[%emt 0:00:54]} Bf6 {[%emt 0:01:25]} 18. Rxe8+ {[%emt 0:04:49]} Rxe8 {[%emt 0:03:19]} 19. Ne4 {[%emt 0:00:12]} Be5 {[%emt 0:00:00]} 20. Bxe5 {[%emt 0:10:17]} Rxe5 {[%emt 0:00:05]} 21. Nc3 {[%emt 0:02:10]} Nf6 {[%emt 0:01:26]} 22. Qd4 {[%emt 0:02:36]} Qe7 {[%emt 0:01:12]} 23. h3 {[%emt 0:07:26]} Nh5 {[%emt 0:17:37]} 24. Kh2 {[%emt 0:10:22]} f5 {[%emt 0:04:28]} 25. Qa7 {[%emt 0:05:35]} g5 {[%emt 0:03:55]} 26. Bf3 {[%emt 0:06:20]} Nf6 {[%emt 0:01:38]} 27. Rd1 {[%emt 0:01:15]} h5 {[%emt 0:04:57]} 28. Qd4 {[%emt 0:05:15]} g4 {[%emt 0:00:30]} 29. hxg4 {[%emt 0:00:15]} hxg4 {[%emt 0:00:05]} 30. Bg2 {[%emt 0:00:42]} Nh5 {[%emt 0:00:46]} 31. Rf1 {[%emt 0:04:00]} Qh7 {[%emt 0:03:24]} 32. Qa7 {[%emt 0:02:04]} Qe7 {[%emt 0:03:12]} 33. Qd4 {[%emt 0:02:22]} Bc8 {[%emt 0:00:15]} 34. Qd2 {[%emt 0:00:47]} Re3 {[%emt 0:02:21]} 0-1

[Event "AUT Bundesliga 2022-23"]
[Site "Jenbach"]
[Date "2022.11.06"]
[Round "4.36"]
[White "Lentrodt, Thomas"]
[Black "Goetz, Christoph"]
[Result "1-0"]
[ECO "A88"]
[WhiteElo "2252"]
[BlackElo "1867"]
[Annotator "TA"]
[PlyCount "93"]
[EventDate "2022.11.03"]
[EventType "team-tourn"]
[EventCountry "AUT"]
[SourceTitle "playchess.com"]
[Source "ChessBase"]
[SourceQuality "1"]
[TimeControl "40/5400+30:1800+30"]

{[%evp 16,93,24,16,18,4,12,10,18,-16,0,0,55,-10,31,10,26,38,35,-79,-30,-20,-13,-21,-22,-17,-18,-17,-20,-13,91,0,43,-21,51,-9,68,0,0,0,96,79,75,59,62,69,69,48,69,81,94,92,98,87,107,114,106,112,129,0,117,99,471,479,479,474,451,451,481,478,619,600,1231,1220,29986,29987,29987,29988,29991,29991]} 1. Nf3 {[%emt 0:00:04]} f5 {[%emt 0:00:11]} 2. d4 {[%emt 0:02:20]} Nf6 {[%emt 0:00:12]} 3. g3 {[%emt 0:00:05]} g6 {[%emt 0:01:13]} 4. Bg2 {[%emt 0:00:34]} Bg7 {[%emt 0:00:07]} 5. c4 {[%emt 0:00:06]} O-O {[%emt 0:00:35]} 6. Nc3 {[%emt 0:00:24]} d6 {[%emt 0:00:42]} 7. O-O {[%emt 0:00:20]} c6 {[%emt 0:03:32] now scores much better than the old 7...Qe8.} 8. Qc2 {[%emt 0:03:07]} Na6 {[%emt 0:04:22]} 9. Rd1 {[%emt 0:06:36]} Qe8 {[%emt 0:05:24] A88: Dutch Defence: Leningrad System: 5 Nf3 0-0 6 0-0 d6 7 Nc3 c6.} 10. d5 {[%emt 0:09:51]} Bd7 {[%emt 0:07:09]} 11. Be3 {[%emt 0:10:17]} h6 {[%emt 0:09:23] [#] The position is equal.} 12. Nd4 $146 {[%emt 0:12:42]} ({Predecessor:} 12. Qb3 c5 13. Qxb7 Nb4 14. Rac1 a5 15. a3 Rb8 16. Qa7 Ra8 17. Qb7 Rb8 18. Qa7 Ra8 {½-½ (18) Norlin,E (2186)-Gagarin,V (2289) Stockholm 2015}) 12... Ng4 {[%emt 0:09:57]} 13. Bc1 {[%emt 0:07:34]} Ne5 {[%emt 0:08:36]} (13... Rc8 $11) 14. b3 {[%emt 0:02:15]} (14. f4 $14 Ng4 15. e4) 14... Rc8 {[%emt 0:11:53]} 15. f4 {[%emt 0:03:21]} Nb4 {[%emt 0:02:00]} 16. Qd2 {[%emt 0:15:50]} Ng4 {[%emt 0:03:19]} 17. Nc2 {[%emt 0:04:55]} (17. e3 $14) 17... c5 {[%emt 0:03:18]} (17... Nxc2 $17 18. Qxc2 b5) 18. e3 $11 {[%emt 0:01:53] Inhibits Bd4.} g5 {[%emt 0:03:32][%cal Og4h2] aiming for ...Nxh2!} 19. h3 {[%emt 0:01:29]} Nf6 {[%emt 0:00:44]} 20. Rb1 {[%emt 0:01:15]} Nh5 {[%emt 0:05:57]} 21. Ne2 {[%emt 0:03:26]} Nxc2 {[%emt 0:07:53]} 22. Qxc2 {[%emt 0:00:02]} Qg6 {[%emt 0:00:13] [#]} (22... b5 $11) 23. Kh2 {[%emt 0:01:12]} ({White should play} 23. g4 $1 $16 {[%cal Rg4h5]}) 23... b5 {[%emt 0:02:54]} 24. Bb2 {[%emt 0:00:48]} (24. g4 $1 $14 Nf6 25. Ng3) 24... Rf7 {[%emt 0:01:03]} (24... Bxb2 $11 25. Rxb2 (25. Qxb2 Nf6 $11) 25... Rb8) 25. Rg1 {[%emt 0:00:58]} (25. g4 $1 $14 Nf6 26. Ng3) 25... Kh7 {[%emt 0:02:06]} ({Better is} 25... Bxb2 $11 26. Qxb2 Nf6) 26. e4 {[%emt 0:04:04]} ({White should try} 26. g4 $1 $14 Nf6 27. Ng3 gxf4 28. exf4 fxg4 29. Qxg6+ Kxg6 30. Bxf6 Bxf6 31. hxg4) 26... Bxb2 {[%emt 0:04:04]} 27. Rxb2 {[%emt 0:00:36]} Ng7 {[%emt 0:00:24]} (27... gxf4 $11 {remains equal.} 28. gxf4 Qf6) 28. e5 {[%emt 0:01:05]} Rff8 {[%emt 0:01:00]} 29. cxb5 {[%emt 0:01:45]} Bxb5 {[%emt 0:00:31]} 30. Nc3 {[%emt 0:00:11]} Ba6 {[%emt 0:00:33]} 31. Qd2 {[%emt 0:00:47]} Nh5 {[%emt 0:01:09]} 32. Bf3 {[%emt 0:00:30]} Rg8 {[%emt 0:00:49]} 33. Rbb1 {[%emt 0:00:45][%cal Bb2b1,Bb1e1,Be1e6][%mdl 32]} Rb8 {[%emt 0:01:06]} (33... gxf4 $2 34. gxf4 Qf7 35. e6 $18) 34. Rbe1 {[%emt 0:00:47] Black must now prevent exd6.} Rb4 {[%emt 0:00:29]} (34... gxf4 $2 35. gxf4 Ng3 36. exd6 exd6 37. Re7+ Kh8 38. Ne2 Nf1+ 39. Rxf1 $18) 35. exd6 {[%emt 0:00:36]} exd6 {[%emt 0:00:13]} 36. Re6 {[%emt 0:00:36]} Nf6 {[%emt 0:00:09]} 37. Qe3 {[%emt 0:03:54] White is more active.} (37. fxg5 Rd4 38. Qe3 hxg5 39. Rxd6 Re8 $14) (37. Rxd6 $16 Rd4 38. Qe1 Ng4+ 39. Bxg4 (39. hxg4 Qxd6 40. gxf5 gxf4 $11) 39... Qxd6 40. Bxf5+ Kh8 41. Be6 (41. Qe5+ Qxe5 42. fxe5 Re8 $11)) 37... g4 {[%emt 0:01:04]} (37... Bc8 $11 38. Re7+ Rg7) 38. hxg4 {[%emt 0:00:52] g5 is the strong threat. The board is on fire.} (38. Rxd6 gxf3 39. Rxa6 (39. Qe7+ $2 Rg7 $19) 39... Ng4+ 40. hxg4 Qxa6 $11) 38... fxg4 {[%emt 0:01:10][%mdl 8192] Loses the game.} (38... Bc8 $16) 39. Be4 $18 {[%emt 0:00:26]} Rxe4 {[%emt 0:00:24]} 40. Nxe4 {[%emt 0:00:00]} (40. Qxe4 Nxe4 41. Rxg6 Kxg6 $11) 40... Qh5+ {[%emt 0:00:00]} 41. Kg2 {[%emt 0:00:14]} Nxd5 {[%emt 0:01:16]} 42. Qd2 {[%emt 0:04:34]} Qf5 {[%emt 0:04:52] [#] Hoping for ...Bb7.} 43. Re1 $1 {[%emt 0:02:36]} Bb7 {[%emt 0:10:08] [#]} (43... Rg6 44. Rxg6) 44. Kg1 $1 {[%emt 0:02:10]} Ba8 {[%emt 0:08:15]} (44... Rg6 45. Nxd6) 45. Nxd6 {[%emt 0:04:03] White mates.} Qh5 {[%emt 0:00:33]} 46. Qc2+ {[%emt 0:06:41]} Kh8 {[%emt 0:03:57] [#]} 47. Rxh6+ $3 {[%emt 0:02:31][%mdl 512] Weighted Error Value: White=0.24 (precise) /Black=0.59} 1-0